bitfinex-derivatives/quotes_BTCF0:USTF0_20251108
["timestamp","ask_amount","ask_price","bid_price","bid_amount"]
[1762628700665,0.61071546,102180.0,102170.0,0.09232627]
[1762628700849,0.61071546,102180.0,102170.0,0.11864211]
[1762628701049,0.39516,102180.0,102170.0,0.21654971]
[1762628701246,0.51281746,102180.0,102170.0,0.33420717]
[1762628701461,0.39516,102180.0,102170.0,0.30989133]
[1762628701652,0.3608,102180.0,102170.0,0.30989133]
[1762628702562,0.3608,102180.0,102170.0,0.85821133]
[1762628702857,0.3608,102180.0,102170.0,0.85621133]
[1762628703359,0.3608,102180.0,102170.0,0.88251475]
[1762628703660,0.3608,102180.0,102170.0,0.85621133]
[1762628703960,0.3608,102180.0,102170.0,0.88251283]
[1762628704358,0.3608,102180.0,102170.0,0.90884719]
[1762628704764,0.3608,102180.0,102170.0,0.36052719]
[1762628704959,0.37798,102180.0,102170.0,0.30789133]
[1762628705262,0.39516,102180.0,102170.0,0.33418436]
[1762628705464,0.39516,102180.0,102170.0,0.30789133]
[1762628706071,0.39516,102180.0,102170.0,0.33418436]
[1762628706367,0.51281746,102180.0,102170.0,0.3341843]
[1762628712757,0.61071546,102180.0,102170.0,0.21652684]
[1762628713071,0.61071546,102180.0,102170.0,0.3341843]
[1762628713571,0.61071546,102180.0,102170.0,0.88244452]
[1762628714270,0.61071546,102180.0,102170.0,0.76478706]
[1762628715669,0.61071546,102180.0,102170.0,0.88244452]
[1762628715670,0.51281746,102180.0,102170.0,0.88244452]
[1762628719375,0.51281746,102180.0,102170.0,0.85617133]
[1762628720179,0.51281746,102180.0,102170.0,0.73851387]
[1762628720371,0.51281746,102180.0,102170.0,0.85617133]
[1762628720876,0.61071546,102180.0,102170.0,0.85617133]
[1762628721289,0.61071546,102180.0,102170.0,0.90880719]
[1762628721687,0.51281746,102180.0,102170.0,0.90880719]
[1762628722088,0.61071546,102180.0,102170.0,0.90880719]
[1762628723088,0.61071546,102180.0,102170.0,0.79114973]
[1762628723283,0.51281746,102180.0,102170.0,0.90880719]
[1762628725391,0.51281746,102180.0,102170.0,0.87371092]
[1762628725894,0.61071566,102180.0,102170.0,0.87371092]
[1762628726093,0.72837312,102180.0,102170.0,0.14496619]
[1762628726292,0.61071566,102180.0,102170.0,0.09233033]
[1762628727092,0.61071566,102180.0,102170.0,0.21657605]
[1762628727393,0.61071566,102180.0,102170.0,0.19023803]
[1762628728293,0.61070358,102180.0,102170.0,0.21657689]
[1762628729593,0.61070358,102180.0,102170.0,0.19023803]
[1762628729991,0.61070358,102180.0,102170.0,0.21657592]
[1762628731309,0.61070358,102180.0,102170.0,0.18147559]
[1762628731493,0.64591338,102180.0,102170.0,0.18147559]
[1762628732401,0.61070358,102180.0,102170.0,0.1551377]
[1762628733906,0.64591338,102180.0,102170.0,0.1551377]
[1762628734307,0.61070358,102180.0,102170.0,0.1551377]
[1762628736902,0.97150358,102180.0,102170.0,0.1416977]
[1762628737506,0.97150358,102180.0,102170.0,0.1543977]
[1762628746712,0.8538582,102180.0,102170.0,0.1543977]
[1762628747008,0.97150358,102180.0,102170.0,0.1543977]
[1762628754313,1.00671338,102180.0,102170.0,0.1543977]
[1762628758411,1.00671338,102180.0,102170.0,0.18073247]
[1762628758710,1.00671338,102180.0,102170.0,0.1543977]
[1762628759318,1.00671338,102180.0,102170.0,0.18073247]
[1762628761214,0.889068,102180.0,102170.0,0.18073247]
[1762628761415,0.7911698,102180.0,102170.0,0.18073247]
[1762628762317,0.8890679,102180.0,102170.0,0.18073247]
[1762628763720,1.00671328,102180.0,102170.0,0.18073247]
[1762628768826,1.00671328,102180.0,102170.0,0.1807279]
[1762628769325,1.00671328,102180.0,102170.0,0.0828202]
[1762628769925,1.00671328,102180.0,102170.0,0.05649]
[1762628770530,1.00671328,102180.0,102170.0,0.1543977]
[1762628772325,0.94189567,102180.0,102170.0,0.1543977]
[1762628772527,1.05954105,102180.0,102170.0,0.1543977]
[1762628774630,0.94189567,102180.0,102170.0,0.1543977]
[1762628774930,1.05954105,102180.0,102170.0,0.1543977]
[1762628775933,1.00671328,102180.0,102170.0,0.1543977]
[1762628777333,1.00671328,102180.0,102170.0,0.2346477]
[1762628777643,0.90881518,102180.0,102170.0,0.2346477]
[1762628780443,0.75596,102180.0,102170.0,0.2346477]
[1762628780740,0.87360538,102180.0,102170.0,0.2346477]
[1762628781944,0.97150348,102180.0,102170.0,0.2346477]
[1762628783944,0.24990348,102180.0,102170.0,0.2346477]
[1762628784136,0.97150348,102180.0,102170.0,0.2346477]
[1762628784446,1.00671328,102180.0,102170.0,0.2346477]
[1762628784639,0.97150348,102180.0,102170.0,0.2346477]
[1762628785543,0.87360538,102180.0,102170.0,0.26974803]
[1762628787347,0.73878,102180.0,102170.0,0.38739341]
[1762628787648,0.75596,102180.0,102170.0,0.44002927]
[1762628788341,0.75596,102180.0,102170.0,0.32238389]
[1762628789348,0.75596,102180.0,102170.0,0.26974803]
[1762628790349,0.75596,102180.0,102170.0,0.3873704]
[1762628791051,0.7216,102180.0,102170.0,0.44000626]
[1762628791250,0.7216,102180.0,102170.0,0.60420107]
[1762628791456,0.73878,102180.0,102170.0,0.333856]
[1762628791647,0.75596,102180.0,102170.0,0.43998707]
[1762628791950,0.75596,102180.0,102170.0,0.43998626]
[1762628792152,0.75596,102180.0,102170.0,0.48639207]
[1762628792651,0.75596,102180.0,102170.0,0.43998558]
[1762628793751,0.75596,102180.0,102170.0,0.48610396]
[1762628795348,0.75596,102180.0,102170.0,0.32236321]
[1762628795547,0.75596,102180.0,102170.0,0.43998558]
[1762628795748,0.75596,102180.0,102170.0,0.48902844]
[1762628796046,0.75596,102180.0,102170.0,0.49002844]
[1762628796648,0.75596,102180.0,102170.0,0.44298558]
[1762628796848,0.75596,102180.0,102170.0,0.49043207]
[1762628797551,0.75596,102180.0,102170.0,0.44298558]
[1762628798558,0.75596,102180.0,102170.0,0.48927623]
[1762628798856,0.75596,102180.0,102170.0,0.4888899]
[1762628799156,0.75596,102180.0,102170.0,0.44298558]
[1762628799753,0.75596,102180.0,102170.0,0.4888899]
[1762628799958,1.20672531,102180.0,102170.0,0.1132069]
[1762628800158,1.2353232,102180.0,102170.0,0.07812725]
[1762628801148,1.2353232,102180.0,102170.0,0.07612725]
[1762628802359,1.2353232,102180.0,102170.0,0.07512725]
[1762628808260,1.00007846,102180.0,102170.0,0.21756495]
[1762628808560,1.11770083,102180.0,102170.0,0.23018495]
[1762628814768,1.11770083,102180.0,102170.0,0.13227725]
[1762628816568,1.11770083,102180.0,102170.0,0.23018495]
[1762628818066,0.75596,102180.0,102170.0,0.34780732]
[1762628818266,0.97148047,102180.0,102170.0,0.13227725]
[1762628818666,0.97148047,102180.0,102170.0,0.23018495]
[1762628819968,1.08910284,102180.0,102170.0,0.23018495]
[1762628821475,0.97148047,102180.0,102170.0,0.23018495]
[1762628821662,1.08910284,102180.0,102170.0,0.25647526]
[1762628821866,0.8538581,102180.0,102170.0,0.25647526]
[1762628822074,0.97148047,102180.0,102170.0,0.25647526]
[1762628825177,0.87358237,102180.0,102170.0,0.25647526]
[1762628825375,0.87358237,102180.0,102170.0,0.18134801]
[1762628826476,0.97148047,102180.0,102170.0,0.18134801]
[1762628827169,0.24988047,102180.0,102170.0,0.18134801]
[1762628827374,0.97148047,102180.0,102170.0,0.18134801]
[1762628830685,0.97148047,102180.0,102170.0,0.14563801]
[1762628830886,0.97148047,102180.0,102170.0,0.18059801]
[1762628831589,0.8538581,102180.0,102170.0,0.18059801]
[1762628831790,0.97148047,102180.0,102170.0,0.18059801]
[1762628833600,0.87358237,102180.0,102170.0,0.18059801]
[1762628833902,0.97148047,102180.0,102170.0,0.29822038]
[1762628834506,0.24988047,102180.0,102170.0,0.29822038]
[1762628834697,0.97148047,102180.0,102170.0,0.29822038]
[1762628835001,0.87358237,102180.0,102170.0,0.29822038]
[1762628835201,0.87358237,102180.0,102170.0,0.33330003]
[1762628838302,0.87358237,102180.0,102170.0,0.30700972]
[1762628840298,0.75596,102180.0,102170.0,0.30700972]
[1762628842809,0.75596,102180.0,102170.0,0.33335032]
[1762628843710,0.75596,102180.0,102170.0,0.21572795]
[1762628843909,0.87358237,102180.0,102170.0,0.33335032]
[1762628844112,0.87358237,102180.0,102170.0,0.30700972]
[1762628845810,0.87358237,102180.0,102170.0,0.18938735]
[1762628846001,0.87358237,102180.0,102170.0,0.30700972]
[1762628846202,0.87358237,102180.0,102170.0,0.18938735]
[1762628846397,0.87358237,102180.0,102170.0,0.33335169]
[1762628847706,0.87358237,102180.0,102170.0,0.30700972]
[1762628848911,0.87358237,102180.0,102170.0,0.85528972]
[1762628849798,0.75596,102180.0,102170.0,0.85528972]
[1762628850003,0.87358237,102180.0,102170.0,0.85528972]
[1762628851707,0.87358237,102180.0,102170.0,0.73766735]
[1762628851909,0.87358237,102180.0,102170.0,0.85528972]
[1762628852414,0.75596,102180.0,102170.0,0.73766735]
[1762628852614,0.8538581,102180.0,102170.0,0.73766735]
[1762628855918,0.97148434,102180.0,102170.0,0.73766735]
[1762628856216,0.8538581,102180.0,102170.0,0.73766735]
[1762628857118,0.1322581,102180.0,102170.0,0.73766735]
[1762628857315,0.8538581,102180.0,102170.0,0.73766735]
[1762628858213,0.75596,102180.0,102170.0,0.73766735]
[1762628858421,0.87358624,102180.0,102170.0,0.73766735]
[1762628859419,0.97148434,102180.0,102170.0,0.73766735]
[1762628860224,0.87358624,102180.0,102170.0,0.73766735]
[1762628860522,0.75596,102180.0,102170.0,0.73766735]
[1762628860723,0.8538581,102180.0,102170.0,0.73766735]
[1762628862214,0.8538581,102180.0,102170.0,0.81791735]
[1762628863331,0.8538581,102180.0,102170.0,0.26963735]
[1762628864726,0.97148434,102180.0,102170.0,0.26963735]
[1762628865219,0.8538581,102180.0,102170.0,0.26963735]
[1762628866626,0.97148434,102180.0,102170.0,0.26963735]
[1762628867828,1.08911058,102180.0,102170.0,0.11532965]
[1762628868122,1.28915992,102180.0,102170.0,0.01025]
[1762628871230,1.32435688,102180.0,102170.0,0.01025]
[1762628874735,0.0979077,102170.0,102160.0,0.00014702]
[1762628874928,0.57633394,102170.0,102160.0,0.00014702]
[1762628875127,0.57633394,102170.0,102160.0,0.01411702]
[1762628875620,0.57633394,102170.0,102160.0,0.05662702]
[1762628876033,0.57633394,102170.0,102160.0,0.05762702]
[1762628876536,0.57633394,102170.0,102160.0,0.05962702]
[1762628877121,0.4587077,102170.0,102160.0,0.05962702]
[1762628877334,0.57633394,102170.0,102160.0,0.05962702]
[1762628878137,0.57633394,102170.0,102160.0,0.15754422]
[1762628878537,0.57633394,102170.0,102160.0,0.05962702]
[1762628879943,0.57633394,102170.0,102160.0,0.15754432]
[1762628881938,0.4587077,102170.0,102160.0,0.15754432]
[1762628882547,0.3608,102170.0,102160.0,0.15754432]
[1762628882750,0.3608,102170.0,102160.0,0.87517056]
[1762628883154,0.3608,102170.0,102160.0,0.91025021]
[1762628883655,0.3608,102170.0,102160.0,0.96288607]
[1762628883854,0.3608,102170.0,102160.0,0.91025021]
[1762628885059,0.3608,102170.0,102160.0,0.79262397]
[1762628886268,0.3608,102170.0,102160.0,0.96288607]
[1762628888156,0.2908,102170.0,102160.0,0.96288607]
[1762628888462,0.3608,102180.0,102170.0,0.1554077]
[1762628888759,0.40373,102180.0,102170.0,0.1554077]
[1762628889651,0.38194,102180.0,102170.0,0.1554077]
[1762628889859,0.3608,102180.0,102170.0,0.1554077]
[1762628890058,0.38194,102180.0,102170.0,0.1554077]
[1762628890361,0.40373,102180.0,102170.0,0.1554077]
[1762628894567,0.5016281,102180.0,102170.0,0.1554077]
[1762628894862,0.61925434,102180.0,102170.0,0.1554077]
[1762628895762,0.40373,102180.0,102170.0,0.1554077]
[1762628898866,0.38194,102180.0,102170.0,0.1554077]
[1762628899061,0.40373,102180.0,102170.0,0.1554077]
[1762628899565,0.40373,102180.0,102170.0,0.27303394]
[1762628900166,0.40373,102180.0,102170.0,0.30811359]
[1762628901366,0.40373,102180.0,102170.0,0.19048735]
[1762628905660,0.40373,102180.0,102170.0,0.73876735]
[1762628910371,0.40373,102180.0,102170.0,0.74076735]
[1762628911075,0.40373,102180.0,102170.0,0.73876735]
[1762628912170,0.52828624,102180.0,102170.0,0.72555735]
[1762628912370,0.5283005,102180.0,102170.0,0.84319785]
[1762628912574,0.5283005,102180.0,102170.0,0.85678785]
[1762628913276,0.6261986,102180.0,102170.0,0.85678785]
[1762628913768,0.6261986,102180.0,102170.0,0.73914735]
[1762628914073,0.6192686,102180.0,102170.0,0.73914735]
[1762628914576,0.5213705,102180.0,102170.0,0.73914735]
[1762628915272,0.5213705,102180.0,102170.0,0.79178321]
[1762628915469,0.5213705,102180.0,102170.0,0.90942371]
[1762628915673,0.5213705,102180.0,102170.0,0.85678785]
[1762628916374,0.5213705,102180.0,102170.0,0.91042371]
[1762628917675,0.5213705,102180.0,102170.0,0.90942371]
[1762628918078,0.40373,102180.0,102170.0,0.90942371]
[1762628920275,0.5213705,102180.0,102170.0,0.90942371]
[1762628923277,0.40373,102180.0,102170.0,0.90942371]
[1762628925669,0.40373,102180.0,102170.0,0.87434406]
[1762628928978,0.38194,102180.0,102170.0,0.87434406]
[1762628929583,0.40497,102180.0,102170.0,0.87434406]
[1762628933183,0.5226105,102180.0,102170.0,0.87434406]
[1762628933987,0.40497,102180.0,102170.0,0.87434406]
[1762628938583,0.5226105,102180.0,102170.0,0.87434406]
[1762628938886,0.40497,102180.0,102170.0,0.87434406]
[1762628940290,0.5226105,102180.0,102170.0,0.87434406]
[1762628940586,0.5226105,102180.0,102170.0,0.90942479]
[1762628941377,0.8903405,102180.0,102170.0,0.77815429]
[1762628942090,0.8903405,102180.0,102170.0,0.79169429]
[1762628942787,0.8834105,102180.0,102170.0,0.79169429]
[1762628945189,0.8834105,102180.0,102170.0,0.90933479]
[1762628946288,0.8834105,102180.0,102170.0,0.79169429]
[1762628946992,0.9813086,102180.0,102170.0,0.79169429]
[1762628947692,0.8834105,102180.0,102170.0,0.79169429]
[1762628948495,0.9813086,102180.0,102170.0,0.79169429]
[1762628948882,0.9813086,102180.0,102170.0,0.24345429]
[1762628949583,0.8834105,102180.0,102170.0,0.24345429]
[1762628950094,0.9813086,102180.0,102170.0,0.24345429]
[1762628951399,0.8834105,102180.0,102170.0,0.24345429]
[1762628954295,0.9882386,102180.0,102170.0,0.24345429]
[1762628954490,1.1058791,102180.0,102170.0,0.17727843]
[1762628954694,0.7727,102180.0,102170.0,0.17727843]
[1762628954893,0.8903405,102180.0,102170.0,0.17727843]
[1762628955296,0.9882386,102180.0,102170.0,0.17727843]
[1762628955901,1.1058791,102180.0,102170.0,0.17727843]
[1762628956398,1.1058791,102180.0,102170.0,0.05805073]
[1762628956703,0.1551877,102170.0,102160.0,0.30217042]
[1762628956903,0.6336282,102170.0,102160.0,0.22480969]
[1762628957501,0.6336282,102170.0,102160.0,0.17832432]
[1762628957902,0.6336282,102170.0,102160.0,0.18032432]
[1762628958401,0.6336282,102170.0,102160.0,0.18132432]
[1762628964706,0.6336282,102170.0,102160.0,0.08340702]
[1762628964912,0.7512687,102170.0,102160.0,0.08340702]
[1762628965708,0.7512687,102170.0,102160.0,0.18132422]
[1762628965906,0.7512687,102170.0,102160.0,0.08340702]
[1762628968007,0.7512687,102170.0,102160.0,0.18132422]
[1762628970801,0.6336282,102170.0,102160.0,0.22645422]
[1762628973901,0.6336282,102170.0,102160.0,0.14619422]
[1762628974308,0.63367003,102170.0,102160.0,0.14619422]
[1762628976594,0.63367003,102170.0,102160.0,0.22645422]
[1762628980007,0.99447003,102170.0,102160.0,0.22645422]
[1762628982201,1.02966699,102170.0,102160.0,0.22645422]
[1762628986307,1.08249476,102170.0,102160.0,0.22645422]
[1762628996620,1.08249476,102170.0,102160.0,0.14619422]
[1762628999023,1.08249476,102170.0,102160.0,0.22645422]
[1762629001116,1.08249476,102170.0,102160.0,0.23963422]
[1762629004824,0.36089476,102170.0,102160.0,0.23963422]
[1762629005025,1.08249476,102170.0,102160.0,0.23963422]
[1762629008622,0.80240696,102170.0,102160.0,0.35731655]
[1762629008928,0.38358,102170.0,102160.0,0.39239728]
[1762629009119,0.38358,102170.0,102160.0,0.53567314]
[1762629009314,0.3608,102170.0,102160.0,0.53567314]
[1762629009923,0.3608,102170.0,102160.0,0.78039314]
[1762629010128,0.3608,102170.0,102160.0,0.53567314]
[1762629010329,0.38254,102170.0,102160.0,0.41799081]
[1762629010528,0.4044,102170.0,102160.0,0.41799081]
[1762629010723,0.7652,102170.0,102160.0,0.96639081]
[1762629010926,0.88288233,102170.0,102160.0,0.91375495]
[1762629011926,0.88288233,102170.0,102160.0,0.36535495]
[1762629012122,0.98772003,102170.0,102160.0,0.33027422]
[1762629013718,0.7652,102170.0,102160.0,0.33027422]
[1762629013918,0.88288233,102170.0,102160.0,0.33027422]
[1762629014223,0.98771993,102170.0,102160.0,0.31709422]
[1762629014630,0.98079003,102170.0,102160.0,0.33027422]
[1762629015430,0.88288233,102170.0,102160.0,0.33027422]
[1762629016431,0.98079003,102170.0,102160.0,0.33027422]
[1762629017228,0.88288233,102170.0,102160.0,0.33027422]
[1762629019126,0.98079003,102170.0,102160.0,0.33027422]
[1762629019624,0.88288233,102170.0,102160.0,0.33027422]
[1762629019822,0.98078993,102170.0,102160.0,0.33027422]
[1762629021923,0.98771993,102170.0,102160.0,0.33027422]
[1762629023235,0.98078993,102170.0,102160.0,0.33027422]
[1762629024235,0.98771993,102170.0,102160.0,0.33027422]
[1762629026134,0.98771993,102170.0,102160.0,0.31709422]
[1762629027236,1.16982805,102170.0,102160.0,0.17404702]
[1762629027434,0.46585886,102170.0,102160.0,0.17404702]
[1762629027743,1.18745886,102170.0,102160.0,0.17404702]
[1762629031442,1.22265778,102170.0,102160.0,0.17404702]
[1762629035347,1.16983001,102170.0,102160.0,0.17404702]
[1762629035737,1.22265778,102170.0,102160.0,0.17404702]
[1762629036340,1.34039841,102170.0,102160.0,0.17404702]
[1762629037046,1.34039841,102170.0,102160.0,0.17104702]
[1762629037248,1.29357064,102170.0,102160.0,0.17204702]
[1762629039241,1.31119949,102170.0,102160.0,0.17204702]
[1762629054847,1.31119949,102170.0,102160.0,0.19414702]
[1762629055048,1.31119949,102170.0,102160.0,0.21535702]
[1762629058256,1.18655801,102170.0,102160.0,0.32644432]
[1762629058756,1.30426949,102170.0,102160.0,0.32644432]
[1762629059657,1.30326949,102170.0,102160.0,0.32544432]
[1762629060158,1.30226949,102170.0,102160.0,0.32544432]
[1762629061557,1.33750845,102170.0,102160.0,0.32544432]
[1762629066867,1.34443845,102170.0,102160.0,0.19314702]
[1762629067066,1.34443845,102170.0,102160.0,0.17104702]
[1762629070975,1.34443845,102170.0,102160.0,0.19387702]
[1762629071373,1.30919949,102170.0,102160.0,0.19387702]
[1762629074280,1.30919949,102170.0,102160.0,0.21664702]
[1762629076286,1.30919949,102170.0,102160.0,0.19387702]
[1762629076484,1.30919949,102170.0,102160.0,0.21664702]
[1762629078989,1.30919949,102170.0,102160.0,0.19387702]
[1762629079180,1.30919949,102170.0,102160.0,0.21664702]
[1762629080090,1.30919949,102170.0,102160.0,0.19387702]
[1762629084391,1.42691097,102170.0,102160.0,0.17104702]
[1762629084695,1.30919949,102170.0,102160.0,0.17104702]
[1762629086693,1.25637172,102170.0,102160.0,0.17104702]
[1762629087086,1.3092219,102170.0,102160.0,0.17104702]
[1762629091298,1.25637172,102170.0,102160.0,0.17104702]
[1762629092000,1.30921958,102170.0,102160.0,0.17104702]
[1762629095001,1.30921958,102170.0,102160.0,0.19261702]
[1762629096404,1.19151528,102170.0,102160.0,0.19261702]
[1762629097407,1.13866742,102170.0,102160.0,0.19261702]
[1762629100516,1.13866742,102170.0,102160.0,0.17104702]
[1762629101011,1.13866742,102170.0,102160.0,0.19261702]
[1762629101514,1.20927657,102170.0,102160.0,0.19261702]
[1762629102110,1.13866742,102170.0,102160.0,0.19261702]
[1762629103309,1.13866742,102170.0,102160.0,0.21552702]
[1762629108010,1.13866742,102170.0,102160.0,0.21629702]
[1762629108414,1.13866742,102170.0,102160.0,0.19415702]
[1762629111712,1.13866742,102170.0,102160.0,0.21629702]
[1762629111914,1.13866742,102170.0,102160.0,0.19415702]
[1762629113711,1.20927657,102170.0,102160.0,0.19415702]
[1762629114914,1.18048657,102170.0,102160.0,0.22919702]
[1762629116020,1.18978657,102170.0,102160.0,0.21629702]
[1762629118923,1.21230657,102170.0,102160.0,0.21629702]
[1762629119520,0.49070657,102170.0,102160.0,0.21629702]
[1762629120019,1.21230657,102170.0,102160.0,0.21629702]
[1762629121021,1.21230657,102170.0,102160.0,0.22935702]
[1762629121321,1.20300657,102170.0,102160.0,0.22935702]
[1762629122014,1.13239742,102170.0,102160.0,0.22935702]
[1762629125523,1.13239742,102170.0,102160.0,0.32727432]
[1762629126726,1.20300657,102170.0,102160.0,0.32727432]
[1762629128223,1.13239742,102170.0,102160.0,0.32727432]
[1762629129625,1.20300657,102170.0,102160.0,0.32727432]
[1762629130128,0.48140657,102170.0,102160.0,0.32727432]
[1762629130425,1.20300657,102170.0,102160.0,0.32727432]
[1762629136821,1.06755084,102170.0,102160.0,0.32727432]
[1762629137020,1.16764436,102170.0,102160.0,0.32727432]
[1762629137222,1.22051644,102170.0,102160.0,0.32727432]
[1762629137528,0.80510694,102170.0,102160.0,0.32727432]
[1762629137729,0.76084694,102170.0,102160.0,0.32727432]
[1762629140523,0.90394464,102170.0,102160.0,0.32727432]
[1762629140928,1.0216633,102170.0,102160.0,0.32727432]
[1762629150543,1.0309633,102170.0,102160.0,0.32727432]
[1762629153742,1.0216633,102170.0,102160.0,0.32727432]
[1762629156947,0.3000633,102170.0,102160.0,0.32727432]
[1762629157137,1.0216633,102170.0,102160.0,0.32727432]
[1762629157640,1.0309633,102170.0,102160.0,0.21629702]
[1762629157841,1.08383538,102170.0,102160.0,0.32820422]
[1762629158047,1.0216633,102170.0,102160.0,0.32820422]
[1762629158448,1.02161793,102170.0,102160.0,0.32820422]
[1762629165958,1.03091793,102170.0,102160.0,0.32820422]
[1762629166158,1.08379001,102170.0,102160.0,0.32820422]
[1762629171156,1.08379001,102170.0,102160.0,0.23756422]
[1762629171455,1.08379001,102170.0,102160.0,0.15730422]
[1762629172546,1.08379001,102170.0,102160.0,0.15730432]
[1762629176458,0.98588231,102170.0,102160.0,0.15730432]
[1762629176852,1.08379001,102170.0,102160.0,0.15730432]
[1762629177756,0.98588231,102170.0,102160.0,0.15730432]
[1762629177962,0.97658231,102170.0,102160.0,0.15730432]
[1762629178962,0.92371023,102170.0,102160.0,0.15730432]
[1762629180159,0.80603694,102170.0,102160.0,0.27497761]
[1762629180358,0.92371023,102170.0,102160.0,0.27497761]
[1762629180763,0.92371023,102170.0,102160.0,0.15730432]
[1762629181163,0.92371023,102170.0,102160.0,0.27497761]
[1762629181958,0.80603694,102170.0,102160.0,0.6373709]
[1762629182263,0.74827,102170.0,102160.0,0.55477834]
[1762629182657,0.7708,102170.0,102160.0,0.31005834]
[1762629182866,0.7688,102170.0,102160.0,0.31005834]
[1762629183163,0.74427,102170.0,102160.0,0.31005834]
[1762629183756,0.02267,102170.0,102160.0,0.31005834]
[1762629184859,0.40626,102180.0,102170.0,0.1563376]
[1762629185054,0.52393329,102180.0,102170.0,0.27401089]
[1762629185255,0.40626,102180.0,102170.0,0.27401089]
[1762629185462,0.3608,102180.0,102170.0,0.55377162]
[1762629185658,0.3608,102180.0,102170.0,0.30909162]
[1762629185963,0.3608,102180.0,102170.0,0.55377162]
[1762629186263,0.3648,102180.0,102170.0,0.55377162]
[1762629186659,0.38773,102180.0,102170.0,0.55377162]
[1762629186855,0.52793329,102180.0,102170.0,0.55377162]
[1762629187054,0.52793329,102180.0,102170.0,0.30909162]
[1762629187256,0.52793329,102180.0,102170.0,0.1563376]
[1762629187562,0.52793329,102180.0,102170.0,0.7046976]
[1762629187764,0.64560658,102180.0,102170.0,0.7046976]
[1762629187967,0.52793329,102180.0,102170.0,0.7046976]
[1762629188263,0.62583139,102180.0,102170.0,0.7046976]
[1762629188660,0.52793329,102180.0,102170.0,0.7046976]
[1762629189166,0.62583139,102180.0,102170.0,0.7046976]
[1762629189856,0.74350468,102180.0,102170.0,0.1563376]
[1762629190056,0.65490658,102180.0,102170.0,0.1563376]
[1762629190356,0.75280468,102180.0,102170.0,0.1563376]
[1762629192069,0.74350468,102180.0,102170.0,0.23366734]
[1762629193460,0.75280468,102180.0,102170.0,0.23366734]
[1762629193654,0.75280468,102180.0,102170.0,0.21991734]
[1762629194054,0.75280468,102180.0,102170.0,0.23366734]
[1762629205679,0.75280468,102180.0,102170.0,0.09981974]
[1762629205977,0.1509077,102170.0,102160.0,0.23815022]
[1762629206170,0.62938099,102170.0,102160.0,0.23815022]
[1762629207277,0.62938099,102170.0,102160.0,0.27323095]
[1762629209679,0.53147329,102170.0,102160.0,0.27323095]
[1762629209880,0.52217329,102170.0,102160.0,0.27323095]
[1762629210779,0.62008089,102170.0,102160.0,0.27323095]
[1762629220399,0.62007642,102170.0,102160.0,0.27323095]
[1762629220899,0.62937642,102170.0,102160.0,0.27323095]
[1762629223696,0.53146882,102170.0,102160.0,0.27323095]
[1762629223999,0.62937652,102170.0,102160.0,0.27323095]
[1762629226598,0.53146882,102170.0,102160.0,0.27323095]
[1762629228906,0.52216882,102170.0,102160.0,0.27323095]
[1762629230105,0.4045,102170.0,102160.0,0.27323095]
[1762629234311,0.4045,102170.0,102160.0,0.32586681]
[1762629235903,0.38297,102170.0,102160.0,0.44353563]
[1762629236308,0.3608,102170.0,102160.0,0.44353563]
[1762629240508,0.38279,102170.0,102160.0,0.44353563]
[1762629242114,0.40576,102170.0,102160.0,0.44353563]
[1762629243216,0.40576,102170.0,102160.0,0.32586681]
[1762629244118,0.04496,102170.0,102160.0,1.23498681]
[1762629244416,0.02199,102170.0,102160.0,1.3175749]
[1762629245216,0.3608,102180.0,102170.0,0.1571577]
[1762629245217,0.04496,102180.0,102170.0,0.1571577]
[1762629245408,0.04496,102180.0,102170.0,0.36255429]
[1762629246303,0.04696,102180.0,102170.0,0.30991843]
[1762629247017,0.04896,102180.0,102170.0,0.19224961]
[1762629247418,0.04896,102180.0,102170.0,0.09434191]
[1762629247616,0.04896,102180.0,102170.0,0.19224951]
[1762629248216,0.40976,102180.0,102170.0,0.19224951]
[1762629252723,0.53672882,102180.0,102170.0,0.19224951]
[1762629253020,0.53672882,102180.0,102170.0,0.6919276]
[1762629253604,0.63462692,102180.0,102170.0,0.6919276]
[1762629253908,0.63462692,102180.0,102170.0,0.7709724]
[1762629255422,0.63462692,102180.0,102170.0,0.1999724]
[1762629255613,0.63462692,102180.0,102170.0,0.1769524]
[1762629256122,0.66987386,102180.0,102170.0,0.1769524]
[1762629257725,0.66987386,102180.0,102170.0,0.1769525]
[1762629259024,0.66987386,102180.0,102170.0,0.2572025]
[1762629259723,0.66987386,102180.0,102170.0,0.1592948]
[1762629260826,0.66987386,102180.0,102170.0,0.2499248]
[1762629262423,0.66987386,102180.0,102170.0,0.17088]
[1762629264420,0.78754268,102180.0,102170.0,0.17088]
[1762629264728,0.93464382,102180.0,102170.0,0.17088]
[1762629269334,0.89939688,102180.0,102170.0,0.17088]
[1762629270837,0.89939688,102180.0,102170.0,0.2687876]
[1762629273831,0.89939688,102180.0,102170.0,0.17088]
[1762629274036,0.93464382,102180.0,102170.0,0.2687876]
[1762629276339,0.93464382,102180.0,102170.0,0.2915076]
[1762629276936,0.93464382,102180.0,102170.0,0.1936]
[1762629277238,0.93464382,102180.0,102170.0,0.2915076]
[1762629277540,0.93464382,102180.0,102170.0,0.1936]
[1762629278038,0.93464382,102180.0,102170.0,0.17088]
[1762629278242,0.9875159,102180.0,102170.0,0.17088]
[1762629280443,0.98754024,102180.0,102170.0,0.17088]
[1762629283437,0.9522933,102180.0,102170.0,0.17088]
[1762629288339,0.9522933,102180.0,102170.0,0.21492]
[1762629288643,0.9522933,102180.0,102170.0,0.3128276]
[1762629290339,0.9522933,102180.0,102170.0,0.21492]
[1762629291848,0.5914933,102180.0,102170.0,0.21492]
[1762629292142,1.3130933,102180.0,102170.0,0.21492]
[1762629293238,1.3130933,102180.0,102170.0,0.17088]
[1762629293938,1.3130933,102180.0,102170.0,0.19291]
[1762629294746,1.3130933,102180.0,102170.0,0.17088]
[1762629297542,1.3130933,102180.0,102170.0,0.19291]
[1762629300339,1.3130933,102180.0,102170.0,0.3132676]
[1762629302052,1.07773132,102180.0,102170.0,0.3271876]
[1762629302246,1.3130933,102180.0,102170.0,0.3271876]
[1762629303651,1.3037933,102180.0,102170.0,0.3271876]
[1762629304851,1.33903627,102180.0,102170.0,0.3271876]
[1762629305642,1.33903627,102180.0,102170.0,0.22928]
[1762629305845,1.3130933,102180.0,102170.0,0.21536]
[1762629307250,1.04546132,102180.0,102170.0,0.3271876]
[1762629307444,1.14551815,102180.0,102170.0,0.3271876]
[1762629307648,1.19839023,102180.0,102170.0,0.3271876]
[1762629307855,0.80590802,102180.0,102170.0,0.44486859]
[1762629308249,0.77066,102180.0,102170.0,0.44486859]
[1762629308551,0.74759,102180.0,102170.0,0.4799605]
[1762629309063,0.74559,102180.0,102170.0,0.4799605]
[1762629309947,0.86127099,102180.0,102170.0,0.4799605]
[1762629310152,0.88434099,102180.0,102170.0,0.4799605]
[1762629310958,0.98223899,102180.0,102170.0,0.36227951]
[1762629311159,0.98223899,102180.0,102170.0,0.3271876]
[1762629315060,0.88434099,102180.0,102170.0,0.3271876]